fUSD/lending_fUSD_20250519
["ID","MTS","AMOUNT","RATE_DAILY","PERIOD"]
[361591678,1747627849518,-596.07,0.000138,2]
[361591679,1747627849528,-226.14403,0.00013804,2]
[361591680,1747627849537,-158.93013537,0.00013804,2]
[361591681,1747627849547,-500.0,0.00013806,2]
[361591682,1747627849556,-26546.81985028,0.00013807,2]
[361591683,1747627849565,-338.46,0.00013807,2]
[361591684,1747627849574,-500.0,0.00013807,2]
[361591685,1747627849583,-500.0,0.00013807,2]
[361591686,1747627849593,-597.28,0.00013807,2]
[361591687,1747627849602,-611.78454536,0.00013807,2]
[361591688,1747627849612,-636.38,0.00013807,2]
[361591689,1747627849621,-636.38,0.00013807,2]
[361591690,1747627849630,-636.38,0.00013807,2]
[361591691,1747627849640,-500.0,0.00013807,2]
[361591692,1747627849649,-500.0,0.00013807,2]
[361591693,1747627849659,-500.0,0.00013807,2]
[361591694,1747627849669,-500.0,0.00013807,2]
[361591695,1747627849678,-3162.524892,0.00013808,2]
[361591696,1747627849687,-441.82,0.00013808,2]
[361591697,1747627849697,-927.416064,0.00013808,2]
[361591698,1747627849706,-400.0,0.00013808,2]
[361591699,1747627849715,-400.0,0.00013808,2]
[361591700,1747627849725,-549.50591847,0.00013808,2]
[361591701,1747627849734,-468.14,0.00013808,2]
[361591702,1747627849743,-334.49951885,0.00013808,2]
[361591703,1747627849752,-400.0,0.00013808,2]
[361591704,1747627849761,-400.0,0.00013808,2]
[361591705,1747627849770,-400.0,0.00013808,2]
[361591706,1747627849780,-400.0,0.00013808,2]
[361591707,1747627849789,-402.23689413,0.00013808,2]
[361591708,1747627849803,-400.0,0.00013808,2]
[361591709,1747627849812,-400.0,0.00013808,2]
[361591710,1747627849822,-400.0,0.00013808,2]
[361591711,1747627849831,-400.0,0.00013808,2]
[361591712,1747627849842,-400.0,0.00013808,2]
[361591713,1747627849852,-400.0,0.00013808,2]
[361591714,1747627849861,-400.0,0.00013808,2]
[361591715,1747627849870,-400.0,0.00013808,2]
[361591716,1747627849880,-400.0,0.00013808,2]
[361591717,1747627849890,-400.0,0.00013808,2]
[361591718,1747627849901,-400.0,0.00013808,2]
[361591719,1747627849911,-414.03,0.00013808,2]
[361591720,1747627849920,-403.89446512,0.00013808,2]
[361591721,1747627849930,-400.0,0.00013808,2]
[361591722,1747627849942,-400.0,0.00013808,2]
[361591723,1747627849952,-400.0,0.00013808,2]
[361591724,1747627849964,-400.0,0.00013808,2]
[361591725,1747627849974,-400.0,0.00013808,2]
[361591726,1747627849983,-504.21,0.00013808,2]
[361591727,1747627849993,-400.0,0.00013808,2]
[361591728,1747627850002,-400.0,0.00013808,2]
[361591729,1747627850013,-400.0,0.00013808,2]
[361591730,1747627850022,-400.0,0.00013808,2]
[361591731,1747627850032,-314.57518375,0.00013808,2]
[361591732,1747627850041,-401.82818709,0.00013808,2]
[361591733,1747627850052,-448.85,0.00013808,2]
[361591734,1747627850062,-631.19,0.00013808,2]
[361591735,1747627850072,-400.0,0.00013808,2]
[361591736,1747627850083,-400.0,0.00013808,2]
[361591737,1747627850093,-600.52,0.00013808,2]
[361591738,1747627850103,-504.90439121,0.00013808,2]
[361591739,1747627850113,-900.28,0.00013808,2]
[361591740,1747627850125,-489.91,0.00013808,2]
[361591741,1747627850135,-400.0,0.00013808,2]
[361591742,1747627850147,-400.0,0.00013808,2]
[361591743,1747627850157,-693.22,0.00013808,2]
[361591744,1747627850167,-400.0,0.00013808,2]
[361591745,1747627850176,-400.0,0.00013808,2]
[361591746,1747627850185,-400.0,0.00013808,2]
[361591747,1747627850194,-400.0,0.00013808,2]
[361591748,1747627850203,-400.0,0.00013808,2]
[361591749,1747627850212,-400.0,0.00013808,2]
[361591750,1747627850221,-498.85019845,0.00013808,2]
[361591751,1747627850231,-400.0,0.00013808,2]
[361591752,1747627850240,-502.35,0.00013808,2]
[361591753,1747627850249,-400.0,0.00013808,2]
[361591754,1747627850258,-400.0,0.00013808,2]
[361591755,1747627850267,-400.0,0.00013808,2]
[361591756,1747627850277,-400.0,0.00013808,2]
[361591757,1747627850286,-400.0,0.00013808,2]
[361591758,1747627850295,-401.2464519,0.00013808,2]
[361591759,1747627850305,-226.74,0.00013808,2]
[361591760,1747627850314,-400.0,0.00013808,2]
[361591761,1747627850323,-400.0,0.00013808,2]
[361591762,1747627850332,-401.15766699,0.00013808,2]
[361591763,1747627850341,-400.0,0.00013808,2]
[361591764,1747627850351,-400.0,0.00013808,2]
[361591765,1747627850360,-400.0,0.00013808,2]
[361591766,1747627850368,-400.0,0.00013808,2]
[361591767,1747627850378,-400.0,0.00013808,2]
[361591768,1747627850387,-400.0,0.00013808,2]
[361591769,1747627850396,-406.45,0.00013808,2]
[361591770,1747627850406,-859.36,0.00013808,2]
[361591771,1747627850415,-439.82,0.00013808,2]
[361591772,1747627850425,-890.04,0.00013808,2]
[361591773,1747627850434,-400.0,0.00013808,2]
[361591774,1747627850444,-449.79,0.00013808,2]
[361591775,1747627850453,-400.0,0.00013808,2]
[361591776,1747627850462,-707.55,0.00013808,2]
[361591777,1747627850471,-488.32,0.00013808,2]
[361591778,1747627850480,-400.0,0.00013808,2]
[361591779,1747627850489,-400.0,0.00013808,2]
[361591780,1747627850497,-302.47264962,0.00013808,2]
[361591781,1747627850507,-824.3,0.00013808,2]
[361591782,1747627850518,-402.16928395,0.00013808,2]
[361591783,1747627850528,-400.0,0.00013808,2]
[361591784,1747627850539,-832.56,0.00013808,2]
[361591785,1747627850550,-550.53,0.00013808,2]
[361591786,1747627850560,-400.0,0.00013808,2]
[361591787,1747627850569,-715.63,0.00013808,2]
[361591788,1747627850578,-400.0,0.00013808,2]
[361591789,1747627850588,-419.3,0.00013808,2]
[361591790,1747627850597,-400.0,0.00013808,2]
[361591791,1747627850606,-995.24,0.00013808,2]
[361591792,1747627850615,-400.0,0.00013808,2]
[361591793,1747627850624,-400.0,0.00013808,2]
[361591794,1747627850634,-400.0,0.00013808,2]
[361591795,1747627850643,-400.0,0.00013808,2]
[361591796,1747627850652,-400.0,0.00013808,2]
[361591797,1747627850662,-400.0,0.00013808,2]
[361591798,1747627850672,-400.0,0.00013808,2]
[361591799,1747627850681,-493.55,0.00013808,2]
[361591800,1747627850690,-400.0,0.00013808,2]
[361591801,1747627850699,-400.0,0.00013808,2]
[361591802,1747627850707,-522.48,0.00013808,2]
[361591803,1747627850716,-808.13,0.00013808,2]
[361591804,1747627850725,-400.0,0.00013808,2]
[361591805,1747627850735,-400.0,0.00013808,2]
[361591806,1747627850747,-504.39,0.00013808,2]
[361591807,1747627850756,-400.0,0.00013808,2]
[361591808,1747627850765,-584.43,0.00013808,2]
[361591809,1747627850775,-400.0,0.00013808,2]
[361591810,1747627850783,-400.0,0.00013808,2]
[361591811,1747627850792,-500.77,0.00013808,2]
[361591812,1747627850806,-400.0,0.00013808,2]
[361591813,1747627850815,-629.75,0.00013808,2]
[361591814,1747627850824,-715.21,0.00013808,2]
[361591815,1747627850833,-795.98,0.00013808,2]
[361591816,1747627850842,-430.0,0.00013808,2]
[361591817,1747627850851,-400.0,0.00013808,2]
[361591818,1747627850860,-630.4,0.00013808,2]
[361591819,1747627850869,-400.0,0.00013808,2]
[361591820,1747627850878,-400.0,0.00013808,2]
[361591821,1747627850888,-515.85,0.00013808,2]
[361591822,1747627850899,-400.0,0.00013808,2]
[361591823,1747627850907,-1012.21,0.00013808,2]
[361591824,1747627850918,-722.37,0.00013808,2]
[361591825,1747627850927,-410.01,0.00013808,2]
[361591826,1747627850936,-400.0,0.00013808,2]
[361591827,1747627850945,-400.0,0.00013808,2]
[361591828,1747627850954,-400.0,0.00013808,2]
[361591829,1747627850963,-418.77,0.00013808,2]
[361591830,1747627850972,-400.0,0.00013808,2]
[361591831,1747627850981,-475.48,0.00013808,2]
[361591832,1747627850990,-400.0,0.00013808,2]
[361591833,1747627850999,-1221.24,0.00013808,2]
[361591834,1747627851008,-400.0,0.00013808,2]
[361591835,1747627851017,-400.0,0.00013808,2]
[361591836,1747627851027,-400.0,0.00013808,2]
[361591837,1747627851036,-400.0,0.00013808,2]
[361591838,1747627851045,-740.59,0.00013808,2]
[361591839,1747627851054,-485.66,0.00013808,2]
[361591840,1747627851064,-435.18,0.00013808,2]
[361591841,1747627851073,-531.76,0.00013808,2]
[361591842,1747627851082,-400.0,0.00013808,2]
[361591843,1747627851091,-400.0,0.00013808,2]
[361591844,1747627851100,-400.0,0.00013808,2]
[361591845,1747627851109,-819.93,0.00013808,2]
[361591846,1747627851118,-400.0,0.00013808,2]
[361591847,1747627851128,-400.0,0.00013808,2]
[361591848,1747627851138,-441.59,0.00013808,2]
[361591849,1747627851147,-400.0,0.00013808,2]
[361591850,1747627851157,-444.29,0.00013808,2]
[361591851,1747627851167,-804.79,0.00013808,2]
[361591852,1747627851176,-435.66,0.00013808,2]
[361591853,1747627851186,-400.0,0.00013808,2]
[361591854,1747627851195,-496.35,0.00013808,2]
[361591855,1747627851206,-400.0,0.00013808,2]
[361591856,1747627851215,-675.81,0.00013808,2]
[361591857,1747627851225,-400.0,0.00013808,2]
[361591858,1747627851234,-400.0,0.00013808,2]
[361591859,1747627851243,-400.0,0.00013808,2]
[361591860,1747627851253,-250.0,0.00013808,2]
[361591861,1747627851262,-997.42,0.00013808,2]
[361591862,1747627851272,-435.74,0.00013808,2]
[361591863,1747627851281,-400.0,0.00013808,2]
[361591864,1747627851291,-625.64,0.00013808,2]
[361591865,1747627851301,-400.0,0.00013808,2]
[361591866,1747627851311,-400.0,0.00013808,2]
[361591867,1747627851320,-400.0,0.00013808,2]
[361591868,1747627851329,-400.0,0.00013808,2]
[361591869,1747627851339,-697.59,0.00013808,2]
[361591870,1747627851349,-496.07,0.00013808,2]
[361591871,1747627851358,-400.0,0.00013808,2]
[361591872,1747627851368,-634.93,0.00013808,2]
[361591873,1747627851378,-742.91,0.00013808,2]
[361591874,1747627851387,-400.0,0.00013808,2]
[361591875,1747627851397,-400.0,0.00013808,2]
[361591876,1747627851406,-400.0,0.00013808,2]
[361591877,1747627851418,-400.0,0.00013808,2]
[361591878,1747627851428,-614.67,0.00013808,2]
[361591879,1747627851437,-400.0,0.00013808,2]
[361591880,1747627851446,-400.0,0.00013808,2]
[361591881,1747627851455,-985.14,0.00013808,2]
[361591882,1747627851464,-472.86,0.00013808,2]
[361591883,1747627851474,-400.0,0.00013808,2]
[361591884,1747627851483,-495.31384608,0.00013808,2]
[361591885,1747627851493,-400.0,0.00013808,2]
[361591886,1747627851504,-400.0,0.00013808,2]
[361591887,1747627851514,-400.0,0.00013808,2]
[361591888,1747627851526,-400.0,0.00013808,2]
[361591889,1747627851535,-400.0,0.00013808,2]
[361591890,1747627851556,-428.04,0.00013808,2]
[361591891,1747627851568,-400.0,0.00013808,2]
[361591892,1747627851577,-1323.49,0.00013808,2]
[361591893,1747627851586,-1077.1,0.00013808,2]
[361591894,1747627851596,-650.82,0.00013808,2]
[361591895,1747627851605,-225.83805771,0.00013808,2]
[361591896,1747627851614,-400.0,0.00013808,2]
[361591897,1747627851623,-400.0,0.00013808,2]
[361591898,1747627851631,-400.0,0.00013808,2]
[361591899,1747627851640,-720.26,0.00013808,2]
[361591900,1747627851649,-1066.78,0.00013808,2]
[361591901,1747627851658,-957.01,0.00013808,2]
[361591902,1747627851668,-400.0,0.00013808,2]
[361591903,1747627851679,-400.0,0.00013808,2]
[361591904,1747627851688,-455.82657516,0.00013808,2]
[361591905,1747627851698,-878.32,0.00013808,2]
[361591906,1747627851706,-400.0,0.00013808,2]
[361591907,1747627851716,-400.0,0.00013808,2]
[361591908,1747627851725,-400.0,0.00013808,2]
[361591909,1747627851734,-412.53785075,0.00013808,2]
[361591910,1747627851743,-400.0,0.00013808,2]
[361591911,1747627851753,-423.27,0.00013808,2]
[361591912,1747627851763,-494.99,0.00013808,2]
[361591913,1747627851772,-496.79,0.00013808,2]
[361591914,1747627851781,-1168.58,0.00013808,2]
[361591915,1747627851791,-400.0,0.00013808,2]
[361591916,1747627851806,-431.88,0.00013808,2]
[361591917,1747627851816,-400.0,0.00013808,2]
[361591918,1747627851826,-400.0,0.00013808,2]
[361591919,1747627851835,-400.0,0.00013808,2]
[361591920,1747627851845,-1862.49,0.00013808,2]
[361591921,1747627851854,-400.0,0.00013808,2]
[361591922,1747627851863,-527.11,0.00013808,2]
[361591923,1747627851874,-465.88,0.00013808,2]
[361591924,1747627851884,-400.0,0.00013808,2]
[361591925,1747627851894,-400.0,0.00013808,2]
[361591926,1747627851903,-400.0,0.00013808,2]
[361591927,1747627851912,-404.70562733,0.00013808,2]
[361591928,1747627851922,-419.3559399,0.00013808,2]
[361591929,1747627851932,-636.41,0.00013808,2]
[361591930,1747627851941,-1127.49,0.00013808,2]
[361591931,1747627851950,-400.0,0.00013808,2]
[361591932,1747627851960,-417.16,0.00013808,2]
[361591933,1747627851969,-400.0,0.00013808,2]
[361591934,1747627851979,-401.76,0.00013808,2]
[361591935,1747627851988,-1374.01,0.00013808,2]
[361591936,1747627851997,-400.0,0.00013808,2]
[361591937,1747627852006,-522.91,0.00013808,2]
[361591938,1747627852016,-263.96365678,0.00013808,2]
[361591939,1747627852025,-400.0,0.00013808,2]
[361591940,1747627852034,-872.88,0.00013808,2]
[361591941,1747627852044,-400.0,0.00013808,2]
[361591942,1747627852053,-400.0,0.00013808,2]
[361591943,1747627852062,-400.0,0.00013808,2]
[361591944,1747627852072,-999.84,0.00013808,2]
[361591945,1747627852081,-400.0,0.00013808,2]
[361591946,1747627852090,-585.1,0.00013808,2]
[361591947,1747627852099,-400.0,0.00013808,2]
[361591948,1747627852108,-400.0,0.00013808,2]
[361591949,1747627852117,-400.0,0.00013808,2]
[361591950,1747627852126,-933.11,0.00013808,2]
[361591951,1747627852136,-890.06,0.00013808,2]
[361591952,1747627852145,-462.98,0.00013808,2]
[361591953,1747627852156,-400.0,0.00013808,2]
[361591954,1747627852166,-582.71,0.00013808,2]
[361591955,1747627852175,-292.74538385,0.00013808,2]
[361591956,1747627852184,-893.4,0.00013808,2]
[361591957,1747627852194,-400.0,0.00013808,2]
[361591958,1747627852203,-400.0,0.00013808,2]
[361591959,1747627852212,-400.0,0.00013808,2]
[361591960,1747627852222,-400.0,0.00013808,2]
[361591961,1747627852231,-400.0,0.00013808,2]
[361591962,1747627852241,-400.0,0.00013808,2]
[361591963,1747627852250,-1289.08,0.00013808,2]
[361591964,1747627852260,-400.0,0.00013808,2]
[361591965,1747627852269,-400.0,0.00013808,2]
[361591966,1747627852278,-400.0,0.00013808,2]
[361591967,1747627852287,-400.0,0.00013808,2]
[361591968,1747627852297,-400.0,0.00013808,2]
[361591969,1747627852306,-400.0,0.00013808,2]
[361591970,1747627852315,-535.39,0.00013808,2]
[361591971,1747627852324,-400.0,0.00013808,2]
[361591972,1747627852333,-400.0,0.00013808,2]
[361591973,1747627852343,-693.26,0.00013808,2]
[361591974,1747627852352,-400.0,0.00013808,2]
[361591975,1747627852361,-1021.13,0.00013808,2]
[361591976,1747627852371,-538.75,0.00013808,2]
[361591977,1747627852380,-400.0,0.00013808,2]
[361591978,1747627852389,-400.0,0.00013808,2]
[361591979,1747627852398,-859.17,0.00013808,2]
[361591980,1747627852407,-400.0,0.00013808,2]
[361591981,1747627852417,-400.45,0.00013808,2]
[361591982,1747627852427,-828.25,0.00013808,2]
[361591983,1747627852436,-400.0,0.00013808,2]
[361591984,1747627852445,-400.0,0.00013808,2]
[361591985,1747627852455,-400.0,0.00013808,2]
[361591986,1747627852464,-425.66,0.00013808,2]
[361591987,1747627852472,-767.56,0.00013808,2]
[361591988,1747627852484,-400.0,0.00013808,2]
[361591989,1747627852493,-400.0,0.00013808,2]
[361591990,1747627852502,-995.26,0.00013808,2]
[361591991,1747627852511,-409.13,0.00013808,2]
[361591992,1747627852520,-400.0,0.00013808,2]
[361591993,1747627852529,-757.92,0.00013808,2]
[361591994,1747627852538,-404.03329439,0.00013808,2]
[361591995,1747627852547,-699.57,0.00013808,2]
[361591996,1747627852556,-400.0,0.00013808,2]
[361591997,1747627852565,-400.0,0.00013808,2]
[361591998,1747627852574,-400.0,0.00013808,2]
[361591999,1747627852583,-400.0,0.00013808,2]
[361592000,1747627852592,-400.0,0.00013808,2]
[361592001,1747627852601,-1473.96,0.00013808,2]
[361592002,1747627852610,-581.34,0.00013808,2]
[361592003,1747627852619,-746.04,0.00013808,2]
[361592004,1747627852628,-1110.92,0.00013808,2]
[361592005,1747627852637,-424.89,0.00013808,2]
[361592006,1747627852646,-400.0,0.00013808,2]
[361592007,1747627852655,-400.0,0.00013808,2]
[361592008,1747627852664,-400.0,0.00013808,2]
[361592009,1747627852674,-400.0,0.00013808,2]
[361592010,1747627852683,-590.96,0.00013808,2]
[361592011,1747627852691,-400.0,0.00013808,2]
[361592012,1747627852700,-538.34,0.00013808,2]
[361592013,1747627852709,-400.0,0.00013808,2]
[361592014,1747627852718,-400.0,0.00013808,2]
[361592015,1747627852728,-420.45920575,0.00013808,2]
[361592016,1747627852736,-400.0,0.00013808,2]
[361592017,1747627852746,-467.55,0.00013808,2]
[361592018,1747627852755,-400.0,0.00013808,2]
[361592019,1747627852764,-400.0,0.00013808,2]
[361592020,1747627852773,-450.67,0.00013808,2]
[361592021,1747627852782,-400.0,0.00013808,2]
[361592022,1747627852791,-400.0,0.00013808,2]
[361592023,1747627852799,-400.0,0.00013808,2]
[361592024,1747627852809,-400.0,0.00013808,2]
[361592025,1747627852823,-400.0,0.00013808,2]
[361592026,1747627852832,-400.0,0.00013808,2]
[361592027,1747627852841,-664.84,0.00013808,2]
[361592028,1747627852850,-1000.0,0.00013808,2]
[361592029,1747627852860,-400.0,0.00013808,2]
[361592030,1747627852869,-352.03425991,0.00013808,2]
[361592031,1747627852878,-400.0,0.00013808,2]
[361592032,1747627852888,-400.0,0.00013808,2]
[361592033,1747627852904,-400.0,0.00013808,2]
[361592034,1747627852914,-516.28,0.00013808,2]
[361592035,1747627852923,-460.73,0.00013808,2]
[361592036,1747627852933,-489.13473753,0.00013808,2]
[361592037,1747627852943,-918.76,0.00013808,2]
[361592038,1747627852953,-442.33,0.00013808,2]
[361592039,1747627852962,-400.0,0.00013808,2]
[361592040,1747627852971,-400.0,0.00013808,2]
[361592041,1747627852980,-874.65,0.00013808,2]
[361592042,1747627852990,-403.27774162,0.00013808,2]
[361592043,1747627852999,-400.0,0.00013808,2]
[361592044,1747627853117,-540.22,0.00013808,2]
[361592045,1747627853131,-400.0,0.00013808,2]
[361592046,1747627853141,-400.0,0.00013808,2]
[361592047,1747627853152,-400.0,0.00013808,2]
[361592048,1747627853164,-621.63,0.00013808,2]
[361592049,1747627853174,-400.0,0.00013808,2]
[361592050,1747627853184,-400.0,0.00013808,2]
[361592051,1747627853194,-400.0,0.00013808,2]
[361592052,1747627853204,-400.0,0.00013808,2]
[361592053,1747627853214,-400.0,0.00013808,2]
[361592054,1747627853224,-506.64,0.00013808,2]
[361592055,1747627853234,-400.0,0.00013808,2]
[361592056,1747627853243,-1347.71,0.00013808,2]
[361592057,1747627853252,-1086.0,0.00013808,2]
[361592058,1747627853261,-514.23,0.00013808,2]
[361592059,1747627853271,-771.57,0.00013808,2]
[361592060,1747627853280,-407.81,0.00013808,2]
[361592061,1747627853290,-727.92,0.00013808,2]
[361592062,1747627853299,-2255.61,0.00013808,2]
[361592063,1747627853309,-400.0,0.00013808,2]
[361592064,1747627853319,-478.13552802,0.00013808,2]
[361592065,1747627853329,-639.99,0.00013808,2]
[361592066,1747627853339,-400.0,0.00013808,2]
[361592067,1747627853348,-597.18,0.00013808,2]
[361592068,1747627853358,-400.0,0.00013808,2]
[361592069,1747627853368,-400.0,0.00013808,2]
[361592070,1747627853377,-400.0,0.00013808,2]
[361592071,1747627853387,-400.0,0.00013808,2]
[361592072,1747627853396,-1813.05,0.00013808,2]
[361592073,1747627853406,-1334.94,0.00013808,2]
[361592074,1747627853416,-594.65,0.00013808,2]
[361592075,1747627853426,-811.57,0.00013808,2]
[361592076,1747627853436,-1028.01,0.00013808,2]
[361592077,1747627853445,-400.0,0.00013808,2]
[361592078,1747627853455,-466.45,0.00013808,2]
[361592079,1747627853465,-400.0,0.00013808,2]
[361592080,1747627853475,-400.0,0.00013808,2]
[361592081,1747627853484,-400.0,0.00013808,2]
[361592082,1747627853494,-858.76,0.00013808,2]
[361592083,1747627853504,-400.0,0.00013808,2]
[361592084,1747627853514,-400.0,0.00013808,2]
[361592085,1747627853524,-1337.58,0.00013808,2]
[361592086,1747627853534,-621.63,0.00013808,2]
[361592087,1747627853543,-551.88,0.00013808,2]
[361592088,1747627853553,-577.06,0.00013808,2]
[361592089,1747627853563,-400.0,0.00013808,2]
[361592090,1747627853573,-618.51,0.00013808,2]
[361592091,1747627853583,-400.0,0.00013808,2]
[361592092,1747627853592,-400.0,0.00013808,2]
[361592093,1747627853602,-1194.96,0.00013808,2]
[361592094,1747627853611,-1295.85,0.00013808,2]
[361592095,1747627853620,-2477.03,0.00013808,2]
[361592096,1747627853630,-400.0,0.00013808,2]
[361592097,1747627853640,-410.31,0.00013808,2]
[361592098,1747627853650,-1057.64,0.00013808,2]
[361592099,1747627853659,-6386.78,0.00013808,2]
[361592100,1747627853669,-985.08,0.00013808,2]
[361592101,1747627853679,-400.0,0.00013808,2]
[361592102,1747627853688,-400.0,0.00013808,2]
[361592103,1747627853698,-400.0,0.00013808,2]
[361592104,1747627853707,-745.69,0.00013808,2]
[361592105,1747627853716,-651.08,0.00013808,2]
[361592106,1747627853726,-400.0,0.00013808,2]
[361592107,1747627853736,-556.12,0.00013808,2]
[361592108,1747627853746,-1832.88,0.00013808,2]
[361592109,1747627853755,-400.0,0.00013808,2]
[361592110,1747627853764,-400.0,0.00013808,2]
[361592111,1747627853773,-746.83,0.00013808,2]
[361592112,1747627853783,-404.91995945,0.00013808,2]
[361592113,1747627853792,-400.0,0.00013808,2]
[361592114,1747627853801,-661.01,0.00013808,2]
[361592115,1747627853812,-400.0,0.00013808,2]
[361592116,1747627853824,-406.21417887,0.00013808,2]
[361592117,1747627853833,-1091.86,0.00013808,2]
[361592118,1747627853843,-400.0,0.00013808,2]
[361592119,1747627853852,-611.79,0.00013808,2]
[361592120,1747627853862,-463.96,0.00013808,2]
[361592121,1747627853871,-7379.46,0.00013808,2]
[361592122,1747627853881,-2386.63,0.00013808,2]
[361592123,1747627853890,-400.0,0.00013808,2]
[361592124,1747627853899,-1097.61,0.00013808,2]
[361592125,1747627853908,-9567.38,0.00013808,2]
[361592126,1747627853919,-2435.12,0.00013808,2]
[361592127,1747627853928,-487.99,0.00013808,2]
[361592128,1747627853937,-1255.96,0.00013808,2]
[361592129,1747627853947,-400.0,0.00013808,2]
[361592130,1747627853956,-860.45,0.00013808,2]
[361592131,1747627853965,-400.0,0.00013808,2]
[361592132,1747627853974,-400.0,0.00013808,2]
[361592133,1747627853983,-400.0,0.00013808,2]
[361592134,1747627853992,-593.08,0.00013808,2]
[361592135,1747627854002,-1559.81,0.00013808,2]
[361592136,1747627854011,-400.0,0.00013808,2]
[361592137,1747627854020,-400.0,0.00013808,2]
[361592138,1747627854029,-1152.2,0.00013808,2]
[361592139,1747627854038,-799.58,0.00013808,2]
[361592140,1747627854047,-400.0,0.00013808,2]
[361592141,1747627854056,-400.0,0.00013808,2]
[361592142,1747627854065,-439.19,0.00013808,2]
[361592143,1747627854074,-1023.7,0.00013808,2]
[361592144,1747627854084,-1242.97,0.00013808,2]
[361592145,1747627854093,-1273.16,0.00013808,2]
[361592146,1747627854102,-7091.95,0.00013808,2]
[361592147,1747627854112,-365.8027929,0.00013808,2]
[361592148,1747627854122,-1366.63,0.00013808,2]
[361592149,1747627854131,-504.52907355,0.00013808,2]
[361592150,1747627854142,-400.0,0.00013808,2]
[361592151,1747627854152,-3948.79,0.00013808,2]
[361592152,1747627854162,-400.0,0.00013808,2]
[361592153,1747627854173,-400.0,0.00013808,2]
[361592154,1747627854183,-400.0,0.00013808,2]
[361592155,1747627854193,-400.0,0.00013808,2]
[361592156,1747627854202,-624.89,0.00013808,2]
[361592157,1747627854211,-742.85,0.00013808,2]
[361592158,1747627854220,-400.0,0.00013808,2]
[361592159,1747627854230,-635.6,0.00013808,2]
[361592160,1747627854239,-1783.18,0.00013808,2]
[361592161,1747627854248,-1745.5,0.00013808,2]
[361592162,1747627854258,-408.42842385,0.00013808,2]
[361592163,1747627854267,-2017.88371824,0.00013808,2]
[361592164,1747627854276,-927.81,0.00013808,2]
[361592165,1747627854285,-408.68,0.00013808,2]
[361592166,1747627854295,-1043.8,0.00013808,2]
[361592167,1747627854304,-7358.94,0.00013808,2]
[361592168,1747627854314,-596.18,0.00013808,2]
[361592169,1747627854323,-3519.99,0.00013808,2]
[361592170,1747627854332,-2578.14,0.00013808,2]
[361592171,1747627854342,-982.48,0.00013808,2]
[361592172,1747627854351,-1260.88,0.00013808,2]
[361592173,1747627854360,-502.28,0.00013808,2]
[361592174,1747627854370,-400.0,0.00013808,2]
[361592175,1747627854379,-400.0,0.00013808,2]
[361592176,1747627854389,-408.08212494,0.00013808,2]
[361592177,1747627854398,-1462.58,0.00013808,2]